fUST/lending_fUST_20260228
["ID","MTS","AMOUNT","RATE_DAILY","PERIOD"]
[406895969,1772267506913,-500.0,0.0001589,2]
[406895970,1772267506924,-1039.64,0.0001589,2]
[406895971,1772267506934,-500.0,0.0001589,2]
[406895972,1772267506944,-578.85,0.0001589,2]
[406895973,1772267506955,-372.12545274,0.0001589,2]
[406895974,1772267506964,-500.0,0.0001589,2]
[406895975,1772267506976,-2382.93,0.0001589,2]
[406895976,1772267506986,-2151.2,0.0001589,2]
[406895977,1772267506996,-1096.15,0.0001589,2]
[406895978,1772267507006,-683.72,0.0001589,2]
[406895979,1772267507016,-832.49,0.0001589,2]
[406895980,1772267507027,-692.6,0.0001589,2]
[406895981,1772267507038,-500.0,0.0001589,2]
[406895982,1772267507048,-3399.35,0.0001589,2]
[406895983,1772267507059,-865.62,0.0001589,2]
[406895984,1772267507068,-929.25,0.0001589,2]
[406895985,1772267507079,-500.0,0.0001589,2]
[406895986,1772267507090,-856.18,0.0001589,2]
[406895987,1772267507100,-1271.22,0.0001589,2]
[406895988,1772267507111,-1063.54,0.0001589,2]
[406895989,1772267507122,-1000.0,0.0001589,2]
[406895990,1772267507134,-1318.72,0.0001589,2]
[406895991,1772267507149,-705.79,0.0001589,2]
[406895992,1772267507161,-2424.89,0.0001589,2]
[406895993,1772267507172,-1446.29,0.0001589,2]
[406895994,1772267507190,-500.0,0.0001589,2]
[406895995,1772267507202,-2361.52,0.0001589,2]
[406895996,1772267507213,-500.0,0.0001589,2]
[406895997,1772267507223,-4592.95,0.0001589,2]
[406895998,1772267507236,-500.0,0.0001589,2]
[406895999,1772267507247,-2215.2,0.0001589,2]
[406896000,1772267507258,-1435.8,0.0001589,2]
[406896001,1772267507268,-1576.84,0.0001589,2]
[406896002,1772267507284,-2561.33,0.0001589,2]
[406896003,1772267507296,-1085.51,0.0001589,2]
[406896004,1772267507307,-500.0,0.0001589,2]
[406896005,1772267507316,-500.0,0.0001589,2]
[406896006,1772267507328,-717.42,0.0001589,2]
[406896007,1772267507340,-500.0,0.0001589,2]
[406896008,1772267507350,-274.16313132,0.0001589,2]
[406896009,1772267507361,-1108.2,0.0001589,2]
[406896010,1772267507373,-500.0,0.0001589,2]
[406896011,1772267507384,-500.0,0.0001589,2]
[406896012,1772267507395,-500.0,0.0001589,2]
[406896013,1772267507405,-3100.42,0.0001589,2]
[406896014,1772267507416,-1341.93,0.0001589,2]
[406896015,1772267507426,-1305.67,0.0001589,2]
[406896016,1772267507437,-500.0,0.0001589,2]
[406896017,1772267507447,-500.0,0.0001589,2]
[406896018,1772267507459,-1472.57,0.0001589,2]
[406896019,1772267507470,-561.98,0.0001589,2]
[406896020,1772267507480,-3197.66,0.0001589,2]
[406896021,1772267507492,-615.34,0.0001589,2]
[406896022,1772267507505,-699.96,0.0001589,2]
[406896023,1772267507516,-500.0,0.0001589,2]
[406896024,1772267507529,-1020.13,0.0001589,2]
[406896025,1772267507540,-155.02820938,0.0001589,2]
[406896026,1772267507552,-500.0,0.0001589,2]
[406896027,1772267507563,-596.63,0.0001589,2]
[406896028,1772267507574,-500.0,0.0001589,2]
[406896029,1772267507585,-1033.36,0.0001589,2]
[406896030,1772267507597,-500.0,0.0001589,2]
[406896031,1772267507607,-500.0,0.0001589,2]
[406896032,1772267507618,-2312.35,0.0001589,2]
[406896033,1772267507628,-955.01,0.0001589,2]
[406896034,1772267507639,-806.51,0.0001589,2]
[406896035,1772267507652,-1522.66,0.0001589,2]
[406896036,1772267507663,-500.0,0.0001589,2]
[406896037,1772267507675,-867.0,0.0001589,2]
[406896038,1772267507687,-7146.16,0.0001589,2]
[406896039,1772267507699,-500.0,0.0001589,2]
[406896040,1772267507712,-500.0,0.0001589,2]
[406896041,1772267507723,-500.0,0.0001589,2]
[406896042,1772267507734,-1028.35,0.0001589,2]
[406896043,1772267507746,-500.0,0.0001589,2]
[406896044,1772267507756,-1008.96,0.0001589,2]
[406896045,1772267507767,-500.0,0.0001589,2]
[406896046,1772267507778,-1352.59,0.0001589,2]
[406896047,1772267507789,-506.03,0.0001589,2]
[406896048,1772267507801,-500.0,0.0001589,2]
[406896049,1772267507812,-500.0,0.0001589,2]
[406896050,1772267507823,-500.0,0.0001589,2]
[406896051,1772267507832,-500.0,0.0001589,2]
[406896052,1772267507843,-764.41,0.0001589,2]
[406896053,1772267507855,-500.0,0.0001589,2]
[406896054,1772267507865,-1761.81,0.0001589,2]
[406896055,1772267507877,-2215.04,0.0001589,2]
[406896056,1772267507888,-517.59,0.0001589,2]
[406896057,1772267507900,-517.41,0.0001589,2]
[406896058,1772267507910,-500.0,0.0001589,2]
[406896059,1772267507921,-500.0,0.0001589,2]
[406896060,1772267507932,-963.32,0.0001589,2]
[406896061,1772267507944,-700.0,0.0001589,2]
[406896062,1772267507956,-899.12,0.0001589,2]
[406896063,1772267507967,-500.0,0.0001589,2]
[406896064,1772267507977,-1300.35,0.0001589,2]
[406896065,1772267507991,-5319.48,0.0001589,2]
[406896066,1772267508003,-1252.77,0.0001589,2]
[406896067,1772267508015,-587.74,0.0001589,2]
[406896068,1772267508026,-1166.63,0.0001589,2]
[406896069,1772267508037,-500.0,0.0001589,2]
[406896070,1772267508047,-899.07,0.0001589,2]
[406896071,1772267508058,-2895.24,0.0001589,2]
[406896072,1772267508068,-1068.48,0.0001589,2]
[406896073,1772267508078,-968.49,0.0001589,2]
[406896074,1772267508088,-500.0,0.0001589,2]
[406896075,1772267508098,-2416.57,0.0001589,2]
[406896076,1772267508108,-1587.58,0.0001589,2]
[406896077,1772267508118,-647.96,0.0001589,2]
[406896078,1772267508129,-8070.28,0.0001589,2]
[406896079,1772267508142,-731.15,0.0001589,2]
[406896080,1772267508152,-500.0,0.0001589,2]
[406896081,1772267508163,-500.0,0.0001589,2]
[406896082,1772267508175,-168.15408534,0.0001589,2]
[406896083,1772267508186,-1997.06,0.0001589,2]
[406896084,1772267508196,-3186.98,0.0001589,2]
[406896085,1772267508206,-3896.0,0.0001589,2]
[406896086,1772267508219,-500.0,0.0001589,2]
[406896087,1772267508229,-500.0,0.0001589,2]
[406896088,1772267508239,-527.94,0.0001589,2]
[406896089,1772267508252,-989.6,0.0001589,2]
[406896090,1772267508262,-7025.66,0.0001589,2]
[406896091,1772267508272,-500.0,0.0001589,2]
[406896092,1772267508282,-682.38,0.0001589,2]
[406896093,1772267508293,-659.28,0.0001589,2]
[406896094,1772267508303,-728.78,0.0001589,2]
[406896095,1772267508314,-898.93,0.0001589,2]
[406896096,1772267508324,-793.11,0.0001589,2]
[406896097,1772267508334,-1706.3,0.0001589,2]
[406896098,1772267508344,-500.0,0.0001589,2]
[406896099,1772267508355,-659.85,0.0001589,2]
[406896100,1772267508365,-1134.79,0.0001589,2]
[406896101,1772267508375,-11125.25,0.0001589,2]
[406896102,1772267508386,-7153.51,0.0001589,2]
[406896103,1772267508396,-648.35,0.0001589,2]
[406896104,1772267508406,-5078.3,0.0001589,2]
[406896105,1772267508417,-683.43,0.0001589,2]
[406896106,1772267508427,-2723.16,0.0001589,2]
[406896107,1772267508437,-500.0,0.0001589,2]
[406896108,1772267508448,-4724.28,0.0001589,2]
[406896109,1772267508458,-500.0,0.0001589,2]
[406896110,1772267508468,-739.63,0.0001589,2]
[406896111,1772267508478,-500.0,0.0001589,2]
[406896112,1772267508489,-310.55440065,0.0001589,2]
[406896113,1772267508501,-500.0,0.0001589,2]
[406896114,1772267508511,-500.0,0.0001589,2]
[406896115,1772267508521,-4297.64,0.0001589,2]
[406896116,1772267508532,-737.38,0.0001589,2]
[406896117,1772267508543,-2549.64,0.0001589,2]
[406896118,1772267508553,-500.0,0.0001589,2]
[406896119,1772267508563,-1171.08,0.0001589,2]
[406896120,1772267508573,-2640.18,0.0001589,2]
[406896121,1772267508582,-7472.22,0.0001589,2]
[406896122,1772267508592,-500.0,0.0001589,2]
[406896123,1772267508602,-530.37,0.0001589,2]
[406896124,1772267508612,-1765.65,0.0001589,2]
[406896125,1772267508621,-500.0,0.0001589,2]
[406896126,1772267508631,-500.0,0.0001589,2]
[406896127,1772267508641,-1444.95,0.0001589,2]
[406896128,1772267508651,-4088.91,0.0001589,2]
[406896129,1772267508660,-2445.15,0.0001589,2]
[406896130,1772267508670,-2774.65,0.0001589,2]
[406896131,1772267508680,-500.0,0.0001589,2]
[406896132,1772267508690,-3783.55,0.0001589,2]
[406896133,1772267508700,-1333.68,0.0001589,2]
[406896134,1772267508711,-500.0,0.0001589,2]
[406896135,1772267508721,-14153.91,0.0001589,2]
[406896136,1772267508731,-500.0,0.0001589,2]
[406896137,1772267508742,-500.0,0.0001589,2]
[406896138,1772267508752,-3218.57,0.0001589,2]
[406896139,1772267508762,-2092.55,0.0001589,2]
[406896140,1772267508772,-500.0,0.0001589,2]
[406896141,1772267508782,-2893.22,0.0001589,2]
[406896142,1772267508791,-2259.28,0.0001589,2]
[406896143,1772267508801,-500.0,0.0001589,2]
[406896144,1772267508811,-1798.11,0.0001589,2]
[406896145,1772267508821,-540.91,0.0001589,2]
[406896146,1772267508831,-500.0,0.0001589,2]
[406896147,1772267508841,-500.0,0.0001589,2]
[406896148,1772267508851,-500.0,0.0001589,2]
[406896149,1772267508862,-16752.77,0.0001589,2]
[406896150,1772267508871,-500.0,0.0001589,2]
[406896151,1772267508882,-1638.09,0.0001589,2]
[406896152,1772267508902,-500.97,0.0001589,2]
[406896153,1772267508914,-526.47,0.0001589,2]
[406896154,1772267508925,-500.0,0.0001589,2]
[406896155,1772267508936,-500.0,0.0001589,2]
[406896156,1772267508947,-4470.34,0.0001589,2]
[406896157,1772267508958,-500.0,0.0001589,2]
[406896158,1772267508968,-2160.15,0.0001589,2]
[406896159,1772267508980,-500.0,0.0001589,2]
[406896160,1772267508990,-587.54,0.0001589,2]
[406896161,1772267509002,-611.61,0.0001589,2]
[406896162,1772267509180,-679.97,0.0001589,2]
[406896163,1772267509196,-500.0,0.0001589,2]
[406896164,1772267509205,-62454.68,0.0001589,2]
[406896165,1772267509217,-4931.54,0.0001589,2]
[406896166,1772267509227,-691.25,0.0001589,2]
[406896167,1772267509236,-500.0,0.0001589,2]
[406896168,1772267509246,-2603.07,0.0001589,2]
[406896169,1772267509256,-7026.09,0.0001589,2]
[406896170,1772267509265,-541.38502338,0.0001589,2]
[406896171,1772267509275,-668.0,0.0001589,2]
[406896172,1772267509284,-1193.68,0.0001589,2]
[406896173,1772267509294,-635.83,0.0001589,2]
[406896174,1772267509305,-500.0,0.0001589,2]
[406896175,1772267509314,-500.0,0.0001589,2]
[406896176,1772267509324,-1018.54,0.0001589,2]
[406896177,1772267509334,-500.0,0.0001589,2]
[406896178,1772267509344,-8795.12,0.0001589,2]
[406896179,1772267509353,-500.0,0.0001589,2]
[406896180,1772267509362,-511.19,0.0001589,2]
[406896181,1772267509372,-2059.67,0.0001589,2]
[406896182,1772267509381,-500.0,0.0001589,2]
[406896183,1772267509391,-500.0,0.0001589,2]
[406896184,1772267509400,-2791.04,0.0001589,2]
[406896185,1772267509409,-500.0,0.0001589,2]
[406896186,1772267509419,-4120.89,0.0001589,2]
[406896187,1772267509428,-500.0,0.0001589,2]
[406896188,1772267509437,-738.7,0.0001589,2]
[406896189,1772267509447,-500.0,0.0001589,2]
[406896190,1772267509455,-858.19,0.0001589,2]
[406896191,1772267509465,-210.24112807,0.0001589,2]
[406896192,1772267509474,-1094.77,0.0001589,2]
[406896193,1772267509484,-1558.46,0.0001589,2]
[406896194,1772267509494,-3104.3,0.0001589,2]
[406896195,1772267509505,-500.0,0.0001589,2]
[406896196,1772267509515,-41294.65,0.0001589,2]
[406896197,1772267509524,-500.0,0.0001589,2]
[406896198,1772267509534,-596.42754833,0.0001589,2]
[406896199,1772267509545,-500.0,0.0001589,2]
[406896200,1772267509554,-500.0,0.0001589,2]
[406896201,1772267509564,-4305.9,0.0001589,2]
[406896202,1772267509573,-1079.08,0.0001589,2]
[406896203,1772267509583,-1590.25,0.0001589,2]
[406896204,1772267509592,-17553.64,0.0001589,2]
[406896205,1772267509602,-829.59,0.0001589,2]
[406896206,1772267509612,-836.94,0.0001589,2]
[406896207,1772267509622,-2501.06,0.0001589,2]
[406896208,1772267509632,-624.89,0.0001589,2]
[406896209,1772267509641,-500.0,0.0001589,2]
[406896210,1772267509651,-500.0,0.0001589,2]
[406896211,1772267509661,-587.66,0.0001589,2]
[406896212,1772267509670,-612.52,0.0001589,2]
[406896213,1772267509681,-798.52,0.0001589,2]
[406896214,1772267509691,-920.96,0.0001589,2]
[406896215,1772267509701,-833.23,0.0001589,2]
[406896216,1772267509711,-502.1,0.0001589,2]
[406896217,1772267509721,-1661.19,0.0001589,2]
[406896218,1772267509731,-411.63601116,0.0001589,2]
[406896219,1772267509741,-884.15,0.0001589,2]
[406896220,1772267509753,-997.87,0.0001589,2]
[406896221,1772267509764,-714.12,0.0001589,2]
[406896222,1772267509774,-2806.98,0.0001589,2]
[406896223,1772267509785,-3389.85,0.0001589,2]
[406896224,1772267509795,-500.0,0.0001589,2]
[406896225,1772267509805,-500.0,0.0001589,2]
[406896226,1772267509816,-736.98,0.0001589,2]
[406896227,1772267509826,-579.6580545,0.0001589,2]
[406896228,1772267509836,-3040.54,0.0001589,2]
[406896229,1772267509845,-500.0,0.0001589,2]
[406896230,1772267509855,-1624.77,0.0001589,2]
[406896231,1772267509864,-8862.41,0.0001589,2]
[406896232,1772267509874,-21682.96,0.0001589,2]
[406896233,1772267509883,-1097.26,0.0001589,2]
[406896234,1772267509893,-500.0,0.0001589,2]
[406896235,1772267509903,-7502.8,0.0001589,2]
[406896236,1772267509912,-500.0,0.0001589,2]
[406896237,1772267509922,-565.02,0.0001589,2]
[406896238,1772267509931,-6625.37,0.0001589,2]
[406896239,1772267509940,-500.0,0.0001589,2]
[406896240,1772267509950,-2462.23,0.0001589,2]
[406896241,1772267509959,-1430.4,0.0001589,2]
[406896242,1772267509968,-1591.21,0.0001589,2]
[406896243,1772267509977,-1097.85,0.0001589,2]
[406896244,1772267509987,-941.74,0.0001589,2]
[406896245,1772267509995,-2991.59,0.0001589,2]
[406896246,1772267510006,-1208.52,0.0001589,2]
[406896247,1772267510017,-1852.72,0.0001589,2]
[406896248,1772267510026,-500.0,0.0001589,2]
[406896249,1772267510037,-500.0,0.0001589,2]
[406896250,1772267510046,-500.0,0.0001589,2]
[406896251,1772267510056,-500.0,0.0001589,2]
[406896252,1772267510066,-2739.1,0.0001589,2]
[406896253,1772267510075,-500.0,0.0001589,2]
[406896254,1772267510085,-3806.49,0.0001589,2]
[406896255,1772267510094,-7703.07,0.0001589,2]
[406896256,1772267510104,-515.24,0.0001589,2]
[406896257,1772267510114,-500.0,0.0001589,2]
[406896258,1772267510124,-500.0,0.0001589,2]
[406896259,1772267510138,-1723.78,0.0001589,2]
[406896260,1772267510147,-1269.75,0.0001589,2]
[406896261,1772267510157,-492.016713,0.0001589,2]
[406896262,1772267510166,-2065.59,0.0001589,2]
[406896263,1772267510176,-500.0,0.0001589,2]
[406896264,1772267510185,-500.0,0.0001589,2]
[406896265,1772267510194,-2115.78,0.0001589,2]
[406896266,1772267510203,-500.0,0.0001589,2]
[406896267,1772267510215,-1897.54,0.0001589,2]
[406896268,1772267510225,-3092.48,0.0001589,2]
[406896269,1772267510234,-500.0,0.0001589,2]
[406896270,1772267510244,-922.16,0.0001589,2]
[406896271,1772267510255,-1034.45,0.0001589,2]
[406896272,1772267510265,-4771.37,0.0001589,2]
[406896273,1772267510274,-500.0,0.0001589,2]
[406896274,1772267510284,-1231.85,0.0001589,2]
[406896275,1772267510293,-500.0,0.0001589,2]
[406896276,1772267510303,-703.38,0.0001589,2]
[406896277,1772267510312,-1282.5361883,0.0001589,2]
[406896278,1772267510322,-38000.0,0.00015891,3]
[406896279,1772267510331,-38000.0,0.000159,3]
[406896280,1772267510341,-38000.0,0.000159,3]
[406896281,1772267510350,-166.64702492,0.000159,3]
[406896282,1772267510359,-2725.09,0.00015934,2]
[406896283,1772267510369,-1125145.47029893,0.00016,2]
[406896284,1772267510378,-3000.0,0.00016,2]
[406896285,1772267510388,-2643.4850295,0.00016,2]
[406896286,1772267510398,-2003.82396551,0.00016,2]
[406896287,1772267510408,-3000.0,0.0001601,2]
[406896288,1772267510418,-2728.11826499,0.00016012,2]
[406896289,1772267510427,-3000.0,0.0001602,2]
[406896290,1772267510437,-3000.0,0.0001603,2]
[406896291,1772267510446,-3000.0,0.0001604,2]
[406896292,1772267510455,-5638.90546461,0.0001604,2]
[406896293,1772267510465,-3000.0,0.0001605,2]
[406896294,1772267510474,-2725.09,0.00016051,2]
[406896295,1772267510484,-3403.312008,0.0001606,2]
[406896296,1772267510493,-379.57946701,0.00016164,2]
[406896297,1772267510502,-500.0,0.00016164,2]
[406896298,1772267510512,-607.58,0.00016164,2]
[406896299,1772267510522,-500.0,0.00016164,2]
[406896300,1772267510532,-980.59,0.00016164,2]
[406896301,1772267510541,-500.0,0.00016164,2]
[406896302,1772267510550,-500.0,0.00016164,2]
[406896303,1772267510560,-500.0,0.00016164,2]
[406896304,1772267510571,-500.0,0.00016164,2]
[406896305,1772267510585,-1353.85,0.00016164,2]
[406896306,1772267510594,-1322.07,0.00016164,2]
[406896307,1772267510604,-692.0,0.00016164,2]
[406896308,1772267510613,-500.0,0.00016164,2]
[406896309,1772267510623,-564.22,0.00016164,2]
[406896310,1772267510633,-520.93,0.00016164,2]
[406896311,1772267510642,-500.0,0.00016164,2]
[406896312,1772267510651,-500.0,0.00016164,2]
[406896313,1772267510661,-500.0,0.00016164,2]
[406896314,1772267510670,-1711.44,0.00016164,2]
[406896315,1772267510679,-2726.35,0.00016164,2]
[406896316,1772267510689,-500.0,0.00016164,2]
[406896317,1772267510699,-1744.45,0.00016164,2]
[406896318,1772267510708,-500.0,0.00016164,2]
[406896319,1772267510718,-500.0,0.00016164,2]
[406896320,1772267510728,-1041.8,0.00016164,2]
[406896321,1772267510738,-737.4,0.00016164,2]
[406896322,1772267510747,-2718.46,0.00016164,2]
[406896323,1772267510759,-500.0,0.00016164,2]
[406896324,1772267510769,-500.0,0.00016164,2]
[406896325,1772267510778,-770.65,0.00016164,2]
[406896326,1772267510788,-902.4,0.00016164,2]
[406896327,1772267510798,-989.47,0.00016164,2]
[406896328,1772267510807,-558.27,0.00016164,2]
[406896329,1772267510817,-603.96,0.00016164,2]
[406896330,1772267510827,-500.0,0.00016164,2]
[406896331,1772267510836,-500.58,0.00016164,2]
[406896332,1772267510846,-2062.12,0.00016164,2]
[406896333,1772267510855,-719.5,0.00016164,2]
[406896334,1772267510865,-525.56,0.00016164,2]
[406896335,1772267510874,-500.0,0.00016164,2]
[406896336,1772267510884,-500.0,0.00016164,2]
[406896337,1772267510893,-201.29269125,0.00016164,2]
[406896338,1772267510902,-500.0,0.00016164,2]
[406896339,1772267510911,-546.89,0.00016164,2]
[406896340,1772267510920,-1727.31,0.00016164,2]
[406896341,1772267510930,-500.0,0.00016164,2]
[406896342,1772267510939,-514.02,0.00016164,2]
[406896343,1772267510948,-513.75693461,0.00016164,2]
[406896344,1772267510958,-860.84,0.00016164,2]
[406896345,1772267510967,-955.26,0.00016164,2]
[406896346,1772267510976,-500.0,0.00016164,2]
[406896347,1772267510985,-725.73,0.00016164,2]
[406896348,1772267510995,-914.38,0.00016164,2]
[406896349,1772267511005,-1116.21,0.00016164,2]
[406896350,1772267511015,-269.58057664,0.00016164,2]
[406896351,1772267511024,-573.29958784,0.00016164,2]
[406896352,1772267511033,-579.95,0.00016164,2]
[406896353,1772267511043,-500.0,0.00016164,2]
[406896354,1772267511052,-1326.22,0.00016164,2]
[406896355,1772267511061,-1036.26,0.00016164,2]
[406896356,1772267511071,-500.0,0.00016164,2]
[406896357,1772267511080,-936.85,0.00016164,2]
[406896358,1772267511089,-539.92812475,0.00016164,2]
[406896359,1772267511098,-500.0,0.00016164,2]
[406896360,1772267511107,-500.0,0.00016164,2]
[406896361,1772267511116,-500.0,0.00016164,2]
[406896362,1772267511127,-547.18,0.00016164,2]
[406896363,1772267511137,-1250.68,0.00016164,2]
[406896364,1772267511150,-500.0,0.00016164,2]
[406896365,1772267511159,-1196.3,0.00016164,2]
[406896366,1772267511169,-1024.08,0.00016164,2]
[406896367,1772267511178,-898.6,0.00016164,2]
[406896368,1772267511187,-500.0,0.00016164,2]
[406896369,1772267511197,-500.0,0.00016164,2]
[406896370,1772267511206,-609.4,0.00016164,2]
[406896371,1772267511217,-500.0,0.00016164,2]
[406896372,1772267511226,-1312.05,0.00016164,2]
[406896373,1772267511235,-937.86,0.00016164,2]
[406896374,1772267511244,-651.8,0.00016164,2]
[406896375,1772267511254,-500.0,0.00016164,2]
[406896376,1772267511264,-500.0,0.00016164,2]
[406896377,1772267511273,-500.0,0.00016164,2]
[406896378,1772267511283,-500.0,0.00016164,2]
[406896379,1772267511292,-517.11,0.00016164,2]
[406896380,1772267511302,-500.0,0.00016164,2]
[406896381,1772267511311,-500.0,0.00016164,2]
[406896382,1772267511321,-500.0,0.00016164,2]
[406896383,1772267511331,-1446.65,0.00016164,2]
[406896384,1772267511341,-500.0,0.00016164,2]
[406896385,1772267511351,-1733.53,0.00016164,2]
[406896386,1772267511360,-156.48912922,0.00016164,2]
[406896387,1772267511370,-1436.12,0.00016164,2]
[406896388,1772267511392,-244.47886847,0.00016164,2]
[406896389,1772267511413,-685.31,0.00016164,2]
[406896390,1772267511428,-580.66,0.00016164,2]
[406896391,1772267511438,-571.4,0.00016164,2]
[406896392,1772267511448,-864.92,0.00016164,2]
[406896393,1772267511458,-846.6,0.00016164,2]
[406896394,1772267511467,-1593.78,0.00016164,2]
[406896395,1772267511477,-750.44,0.00016164,2]
[406896396,1772267511487,-500.0,0.00016164,2]
[406896397,1772267511496,-500.0,0.00016164,2]
[406896398,1772267511506,-1521.42,0.00016164,2]
[406896399,1772267511516,-1247.19,0.00016164,2]
[406896400,1772267511526,-705.82,0.00016164,2]
[406896401,1772267511535,-500.0,0.00016164,2]
[406896402,1772267511545,-529.62,0.00016164,2]
[406896403,1772267511555,-500.0,0.00016164,2]
[406896404,1772267511564,-745.32,0.00016164,2]
[406896405,1772267511574,-1605.01,0.00016164,2]
[406896406,1772267511584,-500.0,0.00016164,2]
[406896407,1772267511594,-1610.8,0.00016164,2]
[406896408,1772267511604,-500.0,0.00016164,2]
[406896409,1772267511614,-1001.72,0.00016164,2]
[406896410,1772267511624,-1059.56,0.00016164,2]
[406896411,1772267511634,-627.88,0.00016164,2]
[406896412,1772267511644,-500.0,0.00016164,2]
[406896413,1772267511653,-917.08,0.00016164,2]
[406896414,1772267511663,-500.0,0.00016164,2]
[406896415,1772267511672,-500.0,0.00016164,2]
[406896416,1772267511682,-529.27,0.00016164,2]
[406896417,1772267511691,-927.57,0.00016164,2]
[406896418,1772267511700,-650.87,0.00016164,2]
[406896419,1772267511709,-661.99,0.00016164,2]
[406896420,1772267511719,-500.0,0.00016164,2]
[406896421,1772267511728,-371.57079744,0.00016164,2]
[406896422,1772267511738,-500.0,0.00016164,2]
[406896423,1772267511748,-1219.63,0.00016164,2]
[406896424,1772267511759,-818.16,0.00016164,2]
[406896425,1772267511768,-500.0,0.00016164,2]
[406896426,1772267511777,-564.11,0.00016164,2]
[406896427,1772267511787,-500.0,0.00016164,2]
[406896428,1772267511796,-500.0,0.00016164,2]
[406896429,1772267511806,-285.11874441,0.00016164,2]
[406896430,1772267511817,-500.0,0.00016164,2]
[406896431,1772267511826,-500.0,0.00016164,2]
[406896432,1772267511835,-773.68,0.00016164,2]
[406896433,1772267511845,-500.0,0.00016164,2]
[406896434,1772267511854,-1058.67,0.00016164,2]
[406896435,1772267511863,-544.13,0.00016164,2]
[406896436,1772267511873,-500.0,0.00016164,2]
[406896437,1772267511882,-1354.43,0.00016164,2]
[406896438,1772267511892,-500.0,0.00016164,2]
[406896439,1772267511902,-500.0,0.00016164,2]
[406896440,1772267511911,-947.35,0.00016164,2]
[406896441,1772267511920,-548.17137301,0.00016164,2]
[406896442,1772267511930,-500.0,0.00016164,2]
[406896443,1772267511939,-617.88,0.00016164,2]
[406896444,1772267511949,-577.2,0.00016164,2]
[406896445,1772267511959,-1264.55,0.00016164,2]
[406896446,1772267511968,-609.45,0.00016164,2]
[406896447,1772267511978,-500.0,0.00016164,2]
[406896448,1772267511987,-787.95,0.00016164,2]
[406896449,1772267511997,-1665.88,0.00016164,2]
[406896450,1772267512007,-571.43,0.00016164,2]
[406896451,1772267512017,-500.0,0.00016164,2]
[406896452,1772267512027,-7573.22,0.00016164,2]
[406896453,1772267512036,-554.61,0.00016164,2]
[406896454,1772267512046,-500.0,0.00016164,2]
[406896455,1772267512056,-500.0,0.00016164,2]
[406896456,1772267512065,-500.0,0.00016164,2]
[406896457,1772267512075,-500.0,0.00016164,2]
[406896458,1772267512084,-1743.64,0.00016164,2]
[406896459,1772267512094,-2006.98,0.00016164,2]
[406896460,1772267512104,-647.16,0.00016164,2]
[406896461,1772267512114,-2108.79,0.00016164,2]
[406896462,1772267512123,-500.0,0.00016164,2]
[406896463,1772267512134,-839.36,0.00016164,2]
[406896464,1772267512145,-878.12,0.00016164,2]
[406896465,1772267512154,-7180.71,0.00016164,2]
[406896466,1772267512163,-784.54,0.00016164,2]
[406896467,1772267512173,-696.62,0.00016164,2]
[406896468,1772267512183,-854.66,0.00016164,2]